bitfinex-derivatives/quotes_BTCF0:USTF0_20250614
["timestamp","ask_amount","ask_price","bid_price","bid_amount"]
[1749873598114,2.05398537,105320.0,105310.0,0.0929913]
[1749873598822,2.05398537,105320.0,105310.0,0.07815085]
[1749873599008,2.05398537,105320.0,105310.0,0.0929913]
[1749873599209,2.05398537,105320.0,105310.0,0.07815085]
[1749873599718,2.05398537,105320.0,105310.0,0.0929913]
[1749873600421,2.05398537,105320.0,105310.0,0.07815085]
[1749873600921,2.05398537,105320.0,105310.0,0.0929913]
[1749873601625,2.05398537,105320.0,105310.0,0.07815085]
[1749873601819,2.05398537,105320.0,105310.0,0.0929913]
[1749873602719,2.05398537,105320.0,105310.0,0.09299128]
[1749873602921,2.05398537,105320.0,105310.0,0.0929913]
[1749873603722,2.05398537,105320.0,105310.0,0.07815085]
[1749873603920,2.05398537,105320.0,105310.0,0.10372447]
[1749873604324,2.05398537,105320.0,105310.0,0.10372448]
[1749873604522,2.20220509,105320.0,105310.0,0.05878457]
[1749873605026,2.20220509,105320.0,105310.0,0.04805139]
[1749873605229,2.20220509,105320.0,105310.0,0.05878458]
[1749873605424,2.20220509,105320.0,105310.0,0.05878451]
[1749873605924,2.28032091,105320.0,105310.0,0.04493851]
[1749873606123,0.0949275,105300.0,105280.0,0.0949371]
[1749873606328,0.7216,105290.0,105280.0,0.732372]
[1749873606525,0.0324,105290.0,105280.0,1.093172]
[1749873606725,0.03054186,105300.0,105290.0,0.1898632]
[1749873606929,0.13730713,105300.0,105290.0,0.7480032]
[1749873607131,0.07255586,105300.0,105290.0,0.7480032]
[1749873607724,0.16144255,105300.0,105290.0,0.3980032]
[1749873608023,0.09864255,105300.0,105290.0,0.7080032]
[1749873608327,0.00975586,105300.0,105290.0,0.7727032]
[1749873608726,0.01175586,105300.0,105290.0,0.7727032]
[1749873609128,0.01075586,105300.0,105290.0,0.7837032]
[1749873609326,0.01075586,105300.0,105290.0,0.7997032]
[1749873609327,0.01275586,105300.0,105290.0,0.7997032]
[1749873609730,0.01275586,105300.0,105290.0,0.4997032]
[1749873610832,0.08863035,105300.0,105290.0,0.4997032]
[1749873613148,0.08863035,105300.0,105290.0,0.8197032]
[1749873613446,0.08863035,105300.0,105290.0,0.4897032]
[1749873613746,0.08863035,105300.0,105290.0,0.5097032]
[1749873617539,0.08863035,105300.0,105290.0,0.3316632]
[1749873617746,0.08863035,105300.0,105290.0,0.5097032]
[1749873618051,0.31137545,105300.0,105290.0,0.53557003]
[1749873618352,0.34447545,105300.0,105290.0,0.32473003]
[1749873618552,0.70527545,105300.0,105290.0,0.45267004]
[1749873618753,0.73727545,105300.0,105290.0,0.43784902]
[1749873618953,1.07727545,105300.0,105290.0,0.27463029]
[1749873619157,0.82616214,105300.0,105290.0,0.45267044]
[1749873619550,0.82616214,105300.0,105290.0,0.27463044]
[1749873619751,0.82616214,105300.0,105290.0,0.43784902]
[1749873620053,0.82616214,105300.0,105290.0,0.27464323]
[1749873620355,0.73727545,105300.0,105290.0,0.45268323]
[1749873621352,0.73727545,105300.0,105290.0,0.43784902]
[1749873621553,0.73727545,105300.0,105290.0,0.45268323]
[1749873621850,0.73727545,105300.0,105290.0,0.43784902]
[1749873622054,0.73727545,105300.0,105290.0,0.45268323]
[1749873622757,0.73727545,105300.0,105290.0,0.43784902]
[1749873623455,0.73727545,105300.0,105290.0,0.45268055]
[1749873623756,0.73727545,105300.0,105290.0,0.43784902]
[1749873624155,1.08727545,105300.0,105290.0,0.45268063]
[1749873624353,0.73727545,105300.0,105290.0,0.43784902]
[1749873624756,0.73727545,105300.0,105290.0,0.45269046]
[1749873624963,0.73727545,105300.0,105290.0,0.43784902]
[1749873625164,0.73727545,105300.0,105290.0,0.45269046]
[1749873625664,0.73727545,105300.0,105290.0,0.43784902]
[1749873626059,0.73727545,105300.0,105290.0,0.45269046]
[1749873626260,0.73727545,105300.0,105290.0,0.45269048]
[1749873626559,0.73727545,105300.0,105290.0,0.45269043]
[1749873626759,0.73727545,105300.0,105290.0,0.45269042]
[1749873627663,0.73727545,105300.0,105290.0,0.45269044]
[1749873627864,0.15463035,105300.0,105290.0,0.78269044]
[1749873628165,0.15463035,105300.0,105290.0,0.81499044]
[1749873628661,0.15463035,105300.0,105290.0,0.84629044]
[1749873628861,0.15463035,105300.0,105290.0,0.51629044]
[1749873629061,0.15463035,105300.0,105290.0,0.51628975]
[1749873629563,0.15463035,105300.0,105290.0,0.51616975]
[1749873630162,0.34447535,105300.0,105290.0,0.50132902]
[1749873630556,0.34447535,105300.0,105290.0,0.51616981]
[1749873630866,0.34447535,105300.0,105290.0,0.50132902]
[1749873631066,0.34447535,105300.0,105290.0,0.5161698]
[1749873631268,0.34447535,105300.0,105290.0,0.50132902]
[1749873631461,0.34447535,105300.0,105290.0,0.47322399]
[1749873631765,0.34447535,105300.0,105290.0,0.51617137]
[1749873632367,0.34447535,105300.0,105290.0,0.51617138]
[1749873632565,0.34447535,105300.0,105290.0,0.51617205]
[1749873633169,0.34447535,105300.0,105290.0,0.48487205]
[1749873633370,0.34447535,105300.0,105290.0,0.4700312]
[1749873633570,0.37617535,105300.0,105290.0,0.45257201]
[1749873635070,0.46506204,105300.0,105290.0,0.45257201]
[1749873635661,0.37617535,105300.0,105290.0,0.27465201]
[1749873635869,0.37617535,105300.0,105290.0,0.45257201]
[1749873636169,1.17586204,105300.0,105290.0,0.27465201]
[1749873636467,0.82586204,105300.0,105290.0,0.45257259]
[1749873636971,0.82586204,105300.0,105290.0,0.45257258]
[1749873637266,0.82586204,105300.0,105290.0,0.45257265]
[1749873637869,0.92586204,105300.0,105290.0,0.45257265]
[1749873638166,0.92586204,105300.0,105290.0,0.4377312]
[1749873638468,0.82586204,105300.0,105290.0,0.4377312]
[1749873638668,0.86586204,105300.0,105290.0,0.4377312]
[1749873639067,0.82586204,105300.0,105290.0,0.4377312]
[1749873639373,0.92586204,105300.0,105290.0,0.45257265]
[1749873640073,0.92586204,105300.0,105290.0,0.4377312]
[1749873640573,0.82586204,105300.0,105290.0,0.4377312]
[1749873641669,0.87586204,105300.0,105290.0,0.4377312]
[1749873642269,0.88586204,105300.0,105290.0,0.4377312]
[1749873642575,0.82586204,105300.0,105290.0,0.4377312]
[1749873642969,1.15586204,105300.0,105290.0,0.45257265]
[1749873643182,0.82586204,105300.0,105290.0,0.4377312]
[1749873643373,0.82586204,105300.0,105290.0,0.45257265]
[1749873645076,0.82586204,105300.0,105290.0,0.51187995]
[1749873646476,0.82586204,105300.0,105290.0,0.4970385]
[1749873646883,0.82586204,105300.0,105290.0,0.51187995]
[1749873647178,0.82586204,105300.0,105290.0,0.51187996]
[1749873648574,0.82586204,105300.0,105290.0,0.51187995]
[1749873649073,0.82586204,105300.0,105290.0,0.51187782]
[1749873649373,0.82586204,105300.0,105290.0,0.51187781]
[1749873649577,0.82586204,105300.0,105290.0,0.4970385]
[1749873649774,0.82586204,105300.0,105290.0,0.51187763]
[1749873649973,0.82586204,105300.0,105290.0,0.4970385]
[1749873650278,0.82586204,105300.0,105290.0,0.51187767]
[1749873650577,0.82586204,105300.0,105290.0,0.4970385]
[1749873650978,0.82586204,105300.0,105290.0,0.51187767]
[1749873651180,0.82586204,105300.0,105290.0,0.51187707]
[1749873651877,0.82586204,105300.0,105290.0,0.4970385]
[1749873652083,0.82586204,105300.0,105290.0,0.51187707]
[1749873653185,0.82586204,105300.0,105290.0,0.4970385]
[1749873653584,0.82586204,105300.0,105290.0,0.51187707]
[1749873654289,0.82586204,105300.0,105290.0,0.4970385]
[1749873654480,0.82586204,105300.0,105290.0,0.51187823]
[1749873654681,0.46506204,105300.0,105290.0,0.33395823]
[1749873654876,0.46506204,105300.0,105290.0,0.51187823]
[1749873655076,0.46506204,105300.0,105290.0,0.54347815]
[1749873655677,0.46506204,105300.0,105290.0,0.5286385]
[1749873656090,0.46506204,105300.0,105290.0,0.54347815]
[1749873656890,0.46506204,105300.0,105290.0,0.54347954]
[1749873657587,0.46506204,105300.0,105290.0,0.5286385]
[1749873657783,0.46506204,105300.0,105290.0,0.54347954]
[1749873658489,0.46506204,105300.0,105290.0,0.54347953]
[1749873659082,0.46506204,105300.0,105290.0,0.5286385]
[1749873659595,0.46506204,105300.0,105290.0,0.54347611]
[1749873660189,0.43336204,105300.0,105290.0,0.54347611]
[1749873660390,0.24351704,105300.0,105290.0,0.54347611]
[1749873660591,0.43336204,105300.0,105290.0,0.54347611]
[1749873660782,0.43336204,105300.0,105290.0,0.54347608]
[1749873661086,0.24351704,105300.0,105290.0,0.54347608]
[1749873661292,0.15463035,105300.0,105290.0,0.89347608]
[1749873661485,0.34447545,105300.0,105290.0,0.95787608]
[1749873661789,0.34447545,105300.0,105290.0,1.03191655]
[1749873662091,0.34447545,105300.0,105290.0,1.0467426]
[1749873662496,0.34447545,105300.0,105290.0,0.61786455]
[1749873662681,0.34447545,105300.0,105290.0,0.6030385]
[1749873662887,0.34447545,105300.0,105290.0,0.61786455]
[1749873663786,0.34447545,105300.0,105290.0,0.6030385]
[1749873663986,0.34447545,105300.0,105290.0,0.61786456]
[1749873664188,0.34447545,105300.0,105290.0,0.6030385]
[1749873664387,0.34447545,105300.0,105290.0,0.7067426]
[1749873664586,0.34447545,105300.0,105290.0,0.70674261]
[1749873664986,0.34447545,105300.0,105290.0,0.7067426]
[1749873665693,0.34447545,105300.0,105290.0,0.69191655]
[1749873665894,0.34447545,105300.0,105290.0,0.7067426]
[1749873666094,0.34447545,105300.0,105290.0,0.73642124]
[1749873666394,0.34447545,105300.0,105290.0,1.09124729]
[1749873666694,0.34447545,105300.0,105290.0,1.07642124]
[1749873667097,0.34447545,105300.0,105290.0,0.76123103]
[1749873667293,0.34447545,105300.0,105290.0,0.94784829]
[1749873668090,0.34447545,105300.0,105290.0,0.9330385]
[1749873668286,0.34447545,105300.0,105290.0,0.94784829]
[1749873669095,0.15463035,105300.0,105290.0,0.9478483]
[1749873669393,0.34447535,105300.0,105290.0,0.63784829]
[1749873669593,0.34447535,105300.0,105290.0,0.57344829]
[1749873669793,0.34447535,105300.0,105290.0,0.57345048]
[1749873669993,0.34447535,105300.0,105290.0,0.57345049]
[1749873670194,0.37627535,105300.0,105290.0,0.57345053]
[1749873671097,0.37627535,105300.0,105290.0,0.61795315]
[1749873671294,0.37627535,105300.0,105290.0,0.60314112]
[1749873671498,0.37627535,105300.0,105290.0,0.61795468]
[1749873672801,0.37627535,105300.0,105290.0,0.60314112]
[1749873673004,0.37627535,105300.0,105290.0,0.6179547]
[1749873673197,0.46516204,105300.0,105290.0,0.60314112]
[1749873673403,0.46516204,105300.0,105290.0,0.6179547]
[1749873673604,0.46516204,105300.0,105290.0,0.61796347]
[1749873673806,0.46516204,105300.0,105290.0,0.60314112]
[1749873674005,0.46516204,105300.0,105290.0,0.61796347]
[1749873675003,0.46516204,105300.0,105290.0,0.55865617]
[1749873675203,0.46516204,105300.0,105290.0,0.54383382]
[1749873675406,0.46516204,105300.0,105290.0,0.55865617]
[1749873675898,0.46516204,105300.0,105290.0,0.55866214]
[1749873676507,0.46516204,105300.0,105290.0,0.54383382]
[1749873676712,0.46516204,105300.0,105290.0,0.52706214]
[1749873677304,0.46516204,105300.0,105290.0,0.51223382]
[1749873677609,0.46516204,105300.0,105290.0,0.52706214]
[1749873679001,0.46516204,105300.0,105290.0,0.52706562]
[1749873679505,0.46516204,105300.0,105290.0,0.51223382]
[1749873679910,0.46516204,105300.0,105290.0,0.52706562]
[1749873681307,0.46516204,105300.0,105290.0,0.51223382]
[1749873681507,0.46516204,105300.0,105290.0,0.52706562]
[1749873681708,0.46516204,105300.0,105290.0,0.51223382]
[1749873681909,0.46516204,105300.0,105290.0,0.52706562]
[1749873682307,0.46516204,105300.0,105290.0,0.52706646]
[1749873682703,0.46516204,105300.0,105290.0,0.51223382]
[1749873682904,0.46516204,105300.0,105290.0,0.52706336]
[1749873683810,0.46516204,105300.0,105290.0,0.51223382]
[1749873684005,0.46516204,105300.0,105290.0,0.52706336]
[1749873685011,0.46516204,105300.0,105290.0,0.57154112]
[1749873685406,0.46516204,105300.0,105290.0,0.58637066]
[1749873685808,0.46516204,105300.0,105290.0,0.58637063]
[1749873686113,0.46516204,105300.0,105290.0,0.57154112]
[1749873686305,0.46516204,105300.0,105290.0,0.58637066]
[1749873686507,0.46516204,105300.0,105290.0,0.5863707]
[1749873687215,0.46516204,105300.0,105290.0,0.57154112]
[1749873687606,0.46516204,105300.0,105290.0,0.5863707]
[1749873688015,0.46516204,105300.0,105290.0,0.57154112]
[1749873688209,0.46516204,105300.0,105290.0,0.5863707]
[1749873688717,0.46516204,105300.0,105290.0,0.57154112]
[1749873688907,0.46516204,105300.0,105290.0,0.57159479]
[1749873689513,0.46516204,105300.0,105290.0,0.66239553]
[1749873689913,0.46516204,105300.0,105290.0,0.64756479]
[1749873690110,0.46516204,105300.0,105290.0,0.66239553]
[1749873691418,0.46516204,105300.0,105290.0,0.66239552]
[1749873691616,0.46516204,105300.0,105290.0,0.6623955]
[1749873691815,0.46516204,105300.0,105290.0,0.64756479]
[1749873692011,0.46516204,105300.0,105290.0,0.66239552]
[1749873692919,0.46516204,105300.0,105290.0,0.66239519]
[1749873693318,0.46516204,105300.0,105290.0,0.64756479]
[1749873693519,0.46516204,105300.0,105290.0,0.66239519]
[1749873693712,0.46516204,105300.0,105290.0,0.69419519]
[1749873693915,0.46516204,105300.0,105290.0,0.6066909]
[1749873694115,0.46516204,105300.0,105290.0,0.69419779]
[1749873694315,0.27531704,105300.0,105290.0,0.69419779]
[1749873694619,0.24351704,105300.0,105290.0,0.69419764]
[1749873694817,0.24351704,105300.0,105290.0,0.69419762]
[1749873695013,0.24351704,105300.0,105290.0,0.75307567]
[1749873695207,0.15463035,105300.0,105290.0,1.05824544]
[1749873695412,0.15463035,105300.0,105290.0,1.02856199]
[1749873696117,0.15463035,105300.0,105290.0,1.07523176]
[1749873696518,0.15463035,105300.0,105290.0,1.09006149]
[1749873696718,0.15463035,105300.0,105290.0,1.09006209]
[1749873697415,0.08863035,105300.0,105290.0,1.09006209]
[1749873697715,0.08863035,105300.0,105290.0,1.09006201]
[1749873697920,0.08863035,105300.0,105290.0,1.07523236]
[1749873698116,0.08863035,105300.0,105290.0,1.09006201]
[1749873698317,0.08863035,105300.0,105290.0,1.07523236]
[1749873698518,0.08863035,105300.0,105290.0,1.09006186]
[1749873698915,0.08863035,105300.0,105290.0,1.4508305]
[1749873699114,0.07901635,105300.0,105290.0,1.39152316]
[1749873699315,0.07901635,105300.0,105290.0,1.3915229]
[1749873699515,0.07901635,105300.0,105290.0,1.4864907]
[1749873700024,0.07901635,105300.0,105290.0,1.3915227]
[1749873700219,0.00314186,105300.0,105290.0,1.39152228]
[1749873700426,0.00314186,105300.0,105290.0,1.4316721]
[1749873700723,0.00314186,105300.0,105290.0,1.40193632]
[1749873700924,0.00314186,105300.0,105290.0,1.40193631]
[1749873701316,0.00314186,105300.0,105290.0,1.39158959]
[1749873701626,0.00314186,105300.0,105290.0,1.37679246]
[1749873701823,0.00314186,105300.0,105290.0,1.40191619]
[1749873702125,0.00314186,105300.0,105290.0,1.4019162]
[1749873702423,0.00314186,105300.0,105290.0,1.37679246]
[1749873702621,0.00314186,105300.0,105290.0,1.4019162]
[1749873703126,0.00314186,105300.0,105290.0,1.39158832]
[1749873703313,0.00314186,105300.0,105290.0,1.40191619]
[1749873704419,0.00314186,105300.0,105290.0,1.38712033]
[1749873704927,0.00314186,105300.0,105290.0,1.38712035]
[1749873707624,0.00314186,105300.0,105290.0,1.40195242]
[1749873708020,0.00314186,105300.0,105290.0,1.39163158]
[1749873708222,0.00314186,105300.0,105290.0,1.3871133]
[1749873708528,0.00314186,105300.0,105290.0,1.39163158]
[1749873708721,0.00314186,105300.0,105290.0,1.40195241]
[1749873709118,0.00314186,105300.0,105290.0,1.39163158]
[1749873709324,0.00314186,105300.0,105290.0,1.4019524]
[1749873709523,0.00314186,105300.0,105290.0,1.40198951]
[1749873709921,0.00314186,105300.0,105290.0,1.70038951]
[1749873710330,0.00314186,105300.0,105290.0,1.69003157]
[1749873710525,0.00314186,105300.0,105290.0,1.70038951]
[1749873710829,0.00314186,105300.0,105290.0,1.70038952]
[1749873711029,0.00314186,105300.0,105290.0,1.70038953]
[1749873711623,0.00314186,105300.0,105290.0,1.67519246]
[1749873711831,0.00314186,105300.0,105290.0,1.7003873]
[1749873712021,0.00314186,105300.0,105290.0,1.69003159]
[1749873712223,0.00314186,105300.0,105290.0,1.70039178]
[1749873713632,0.00314186,105300.0,105290.0,1.68555265]
[1749873713930,0.00314186,105300.0,105290.0,1.70039178]
[1749873714233,0.00314186,105300.0,105290.0,1.69003159]
[1749873714432,0.00314186,105300.0,105290.0,1.70039178]
[1749873714632,0.00314186,105300.0,105290.0,1.70039176]
[1749873714833,0.00314186,105300.0,105290.0,1.67519246]
[1749873715031,0.00314186,105300.0,105290.0,1.69003159]
[1749873715334,0.03624186,105300.0,105290.0,1.68555265]
[1749873715521,0.06944186,105300.0,105290.0,2.40757178]
[1749873715928,0.06944186,105300.0,105290.0,2.39721159]
[1749873716135,0.06944186,105300.0,105290.0,2.40757177]
[1749873716333,0.06944186,105300.0,105290.0,2.39721158]
[1749873716635,0.06944186,105300.0,105290.0,2.40757175]
[1749873716934,0.06944186,105300.0,105290.0,2.40757095]
[1749873717229,0.06944186,105300.0,105290.0,2.39273185]
[1749873717426,0.06944186,105300.0,105290.0,2.39273184]
[1749873717626,0.06944186,105300.0,105290.0,2.40757095]
[1749873718134,0.06944186,105300.0,105290.0,2.407571]
[1749873718339,0.06944186,105300.0,105290.0,2.39721161]
[1749873718635,0.06944186,105300.0,105290.0,2.52625222]
[1749873718833,0.06944186,105300.0,105290.0,2.52625219]
[1749873719230,0.06944186,105300.0,105290.0,2.51141307]
[1749873719431,0.06944186,105300.0,105290.0,2.52622796]
[1749873719936,0.06944186,105300.0,105290.0,2.5158928]
[1749873720130,0.06944186,105300.0,105290.0,2.52622796]
[1749873720532,0.06944186,105300.0,105290.0,2.39270762]
[1749873720834,0.10054186,105300.0,105290.0,2.40754674]
[1749873721038,0.10054186,105300.0,105290.0,2.40754675]
[1749873721230,0.10054186,105300.0,105290.0,2.39270762]
[1749873721535,0.10054186,105300.0,105290.0,2.40754675]
[1749873721734,0.10054186,105300.0,105290.0,2.52622797]
[1749873721925,0.10054186,105300.0,105290.0,2.52622765]
[1749873722128,0.10054186,105300.0,105290.0,2.51138852]
[1749873722333,0.10054186,105300.0,105290.0,2.52622765]
[1749873722728,0.10054186,105300.0,105290.0,2.51589281]
[1749873722933,0.10054186,105300.0,105290.0,2.50105368]
[1749873723128,0.10054186,105300.0,105290.0,2.51138852]
[1749873723334,0.10054186,105300.0,105290.0,2.40754642]
[1749873723637,0.10054186,105300.0,105290.0,2.31860096]
[1749873724135,0.10054186,105300.0,105290.0,2.31860097]
[1749873724535,0.10054186,105300.0,105290.0,2.30376185]
[1749873725038,0.10054186,105300.0,105290.0,2.29342701]
[1749873725242,0.10054186,105300.0,105290.0,2.40757495]
[1749873725533,0.10054186,105300.0,105290.0,2.39724011]
[1749873725833,0.10054186,105300.0,105290.0,2.40757499]
[1749873726038,0.10054186,105300.0,105290.0,2.39724014]
[1749873726236,0.10054186,105300.0,105290.0,2.40759918]
[1749873726540,0.10054186,105300.0,105290.0,2.4075992]
[1749873726738,0.10054186,105300.0,105290.0,2.40759921]
[1749873727934,0.10054186,105300.0,105290.0,2.37579921]
[1749873728441,0.10054186,105300.0,105290.0,2.37579904]
[1749873728642,0.10054186,105300.0,105290.0,2.375799]
[1749873729140,0.10054186,105300.0,105290.0,2.37579905]
[1749873730136,0.10054186,105300.0,105290.0,2.36544014]
[1749873730337,0.10054186,105300.0,105290.0,2.37579905]
[1749873730539,0.10054186,105300.0,105290.0,2.36544014]
[1749873730740,0.10054186,105300.0,105290.0,2.37579905]
[1749873730940,0.10054186,105300.0,105290.0,2.3609599]
[1749873731136,0.10054186,105300.0,105290.0,2.35060099]
[1749873731342,0.10054186,105300.0,105290.0,2.3758005]
[1749873731543,0.10054186,105300.0,105290.0,2.36096135]
[1749873731743,0.10054186,105300.0,105290.0,2.35060099]
[1749873731947,0.10054186,105300.0,105290.0,2.3758005]
[1749873732444,0.10054186,105300.0,105290.0,2.37580049]
[1749873732939,0.10054186,105300.0,105290.0,2.36544014]
[1749873733141,0.10054186,105300.0,105290.0,2.37580049]
[1749873733541,0.10054186,105300.0,105290.0,3.19644049]
[1749873733747,0.10054186,105300.0,105290.0,3.18608014]
[1749873734145,0.10054186,105300.0,105290.0,3.1964405]
[1749873734351,0.10054186,105300.0,105290.0,3.19644049]
[1749873734547,0.10054186,105300.0,105290.0,3.18160134]
[1749873735044,0.10054186,105300.0,105290.0,3.09710616]
[1749873735346,0.10054186,105300.0,105290.0,3.10746651]
[1749873735546,0.10054186,105300.0,105290.0,3.13756651]
[1749873735950,0.10054186,105300.0,105290.0,3.12720616]
[1749873736143,0.10054186,105300.0,105290.0,3.13756651]
[1749873736343,0.10054186,105300.0,105290.0,3.11236701]
[1749873736646,0.10054186,105300.0,105290.0,3.13756555]
[1749873736849,0.10054186,105300.0,105290.0,3.11236701]
[1749873737046,0.10054186,105300.0,105290.0,3.12720616]
[1749873737247,0.10054186,105300.0,105290.0,3.1227264]
[1749873737448,0.10054186,105300.0,105290.0,3.24588738]
[1749873737748,0.10054186,105300.0,105290.0,3.25624677]
[1749873737944,0.10054186,105300.0,105290.0,3.24588738]
[1749873738144,0.10054186,105300.0,105290.0,3.25624676]
[1749873738345,0.10054186,105300.0,105290.0,3.25624672]
[1749873738943,0.10054186,105300.0,105290.0,3.25624673]
[1749873739345,0.10054186,105300.0,105290.0,3.24588739]
[1749873739548,0.10054186,105300.0,105290.0,3.25624679]
[1749873739745,0.10054186,105300.0,105290.0,3.24588739]
[1749873740050,0.10054186,105300.0,105290.0,3.25624679]
[1749873740251,0.10054186,105300.0,105290.0,3.23104823]
[1749873740550,0.10054186,105300.0,105290.0,3.25624839]
[1749873740955,0.10054186,105300.0,105290.0,3.24140923]
[1749873741255,0.10054186,105300.0,105290.0,3.25624839]
[1749873741550,0.10054186,105300.0,105290.0,3.24140923]
[1749873741746,0.10054186,105300.0,105290.0,3.24140921]
[1749873741950,0.06944186,105300.0,105290.0,3.24588737]
[1749873742148,0.06944186,105300.0,105290.0,3.25624855]
[1749873742350,0.06944186,105300.0,105290.0,3.24140927]
[1749873742545,0.06944186,105300.0,105290.0,3.25624823]
[1749873742840,0.06944186,105300.0,105290.0,3.24140895]
[1749873743045,0.06944186,105300.0,105290.0,3.2562482]
[1749873743240,0.06944186,105300.0,105290.0,3.24140896]
[1749873743445,0.06944186,105300.0,105290.0,3.24588752]
[1749873743645,0.06944186,105300.0,105290.0,3.25624825]
[1749873743846,0.06944186,105300.0,105290.0,3.24140896]
[1749873744052,0.06944186,105300.0,105290.0,2.95784825]
[1749873744257,0.06944186,105300.0,105290.0,2.94748752]
[1749873744453,0.06944186,105300.0,105290.0,2.95784814]
[1749873744848,0.06944186,105300.0,105290.0,2.95784811]
[1749873745149,0.06944186,105300.0,105290.0,2.94300892]
[1749873745548,0.06944186,105300.0,105290.0,2.93264823]
[1749873745747,0.06944186,105300.0,105290.0,2.95784815]
[1749873745945,0.06944186,105300.0,105290.0,2.9578481]
[1749873746149,0.06944186,105300.0,105290.0,2.94300587]
[1749873746354,0.06944186,105300.0,105290.0,2.95784501]
[1749873746754,0.06944186,105300.0,105290.0,2.93264823]
[1749873747055,0.06944186,105300.0,105290.0,2.95784498]
[1749873747249,0.06944186,105300.0,105290.0,2.94748736]
[1749873747648,0.06944186,105300.0,105290.0,2.97452972]
[1749873748148,0.06944186,105300.0,105290.0,2.96417177]
[1749873748346,0.06944186,105300.0,105290.0,2.94933265]
[1749873748748,0.06944186,105300.0,105290.0,2.95969059]
[1749873749055,0.06944186,105300.0,105290.0,2.96417177]
[1749873749455,0.06944186,105300.0,105290.0,2.97453276]
[1749873749656,0.06944186,105300.0,105290.0,2.97453275]
[1749873751356,0.06944186,105300.0,105290.0,2.95969363]
[1749873751656,0.06944186,105300.0,105290.0,2.97453274]
[1749873751853,0.06944186,105300.0,105290.0,2.96417176]
[1749873752051,0.06944186,105300.0,105290.0,2.97453274]
[1749873752550,0.06944186,105300.0,105290.0,2.96417176]
[1749873752756,0.06944186,105300.0,105290.0,2.97453162]
[1749873752958,0.06944186,105300.0,105290.0,2.94933265]
[1749873753151,0.06944186,105300.0,105290.0,2.97453162]
[1749873753559,0.06944186,105300.0,105290.0,2.96417176]
[1749873753761,0.06944186,105300.0,105290.0,2.97453162]
[1749873754254,0.06944186,105300.0,105290.0,3.25809251]
[1749873754449,0.06944186,105300.0,105290.0,3.24773265]
[1749873754649,0.06944186,105300.0,105290.0,3.26257176]
[1749873754861,0.06944186,105300.0,105290.0,3.27293162]
[1749873755057,0.06944186,105300.0,105290.0,3.25809251]
[1749873755663,0.06944186,105300.0,105290.0,3.26257177]
[1749873755859,0.06944186,105300.0,105290.0,3.27293162]
[1749873756055,0.06944186,105300.0,105290.0,3.25809251]
[1749873756356,0.06944186,105300.0,105290.0,3.26257176]
[1749873756563,0.06944186,105300.0,105290.0,3.27293162]
[1749873756861,0.06944186,105300.0,105290.0,3.27293146]
[1749873757257,0.06944186,105300.0,105290.0,3.25809235]
[1749873757567,0.06944186,105300.0,105290.0,3.27293146]
[1749873757762,0.06944186,105300.0,105290.0,3.25809235]
[1749873757954,0.06944186,105300.0,105290.0,3.26257177]
[1749873758154,0.06944186,105300.0,105290.0,3.24773265]
[1749873758358,0.06944186,105300.0,105290.0,3.27293147]
[1749873758558,0.06944186,105300.0,105290.0,3.27293148]
[1749873758755,0.06944186,105300.0,105290.0,3.27293149]
[1749873759859,0.06944186,105300.0,105290.0,3.25809236]
[1749873760060,0.06944186,105300.0,105290.0,3.27293149]
[1749873760261,0.06944186,105300.0,105290.0,3.27293152]
[1749873760459,0.06944186,105300.0,105290.0,3.27293149]
[1749873760658,0.06944186,105300.0,105290.0,3.24773265]
[1749873760863,0.06944186,105300.0,105290.0,3.27293152]
[1749873761060,0.06944186,105300.0,105290.0,3.2625718]
[1749873761260,0.06944186,105300.0,105290.0,3.25809237]
[1749873761461,0.06944186,105300.0,105290.0,3.2625718]
[1749873761657,0.06944186,105300.0,105290.0,3.25809236]
[1749873761857,0.06944186,105300.0,105290.0,3.25809235]
[1749873762158,0.06944186,105300.0,105290.0,3.25809282]
[1749873762364,0.06944186,105300.0,105290.0,3.2625717]
[1749873762865,0.06944186,105300.0,105290.0,3.27292971]
[1749873763362,0.06944186,105300.0,105290.0,3.24773265]
[1749873763660,0.06944186,105300.0,105290.0,3.27292937]
[1749873763856,0.06944186,105300.0,105290.0,3.26257138]
[1749873764254,0.06944186,105300.0,105290.0,3.27292926]
[1749873764668,0.06944186,105300.0,105290.0,3.26257137]
[1749873764866,0.06944186,105300.0,105290.0,3.27292925]
[1749873765161,0.06944186,105300.0,105290.0,3.24326586]
[1749873765666,0.06944186,105300.0,105290.0,3.25294074]
[1749873766063,0.06944186,105300.0,105290.0,3.2529409]
[1749873766863,0.06944186,105300.0,105290.0,3.22774414]
[1749873767064,0.06944186,105300.0,105290.0,3.2529409]
[1749873767465,0.06944186,105300.0,105290.0,3.23810218]
[1749873767666,0.06944186,105300.0,105290.0,3.24258286]
[1749873767860,0.06944186,105300.0,105290.0,3.22774414]
[1749873768062,0.06944186,105300.0,105290.0,3.2529409]
[1749873768469,0.06944186,105300.0,105290.0,3.23810218]
[1749873768761,0.06944186,105300.0,105290.0,3.25294084]
[1749873769069,0.06944186,105300.0,105290.0,3.23810217]
[1749873769262,0.06944186,105300.0,105290.0,3.25294084]
[1749873769458,0.06944186,105300.0,105290.0,3.24258281]
[1749873769663,0.06944186,105300.0,105290.0,3.25294084]
[1749873769865,0.06944186,105300.0,105290.0,3.24258281]
[1749873770064,0.06944186,105300.0,105290.0,3.25294084]
[1749873770867,0.06944186,105300.0,105290.0,3.2529387]
[1749873771062,0.06944186,105300.0,105290.0,3.23809939]
[1749873771274,0.06944186,105300.0,105290.0,3.25293806]
[1749873771467,0.06944186,105300.0,105290.0,3.23809939]
[1749873771673,0.06944186,105300.0,105290.0,3.24258281]
[1749873772066,0.06944186,105300.0,105290.0,3.25293806]
[1749873772266,0.03634186,105300.0,105290.0,3.25293806]
[1749873772464,0.00314186,105300.0,105290.0,3.18606479]
[1749873772669,0.00314186,105300.0,105290.0,3.23130327]
[1749873772972,0.00314186,105300.0,105290.0,3.24165829]
[1749873773172,0.00314186,105300.0,105290.0,3.23130315]
[1749873773573,0.00314186,105300.0,105290.0,3.24165828]
[1749873773775,0.00314186,105300.0,105290.0,3.22681992]
[1749873773976,0.00314186,105300.0,105290.0,3.24165826]
[1749873774783,0.00314186,105300.0,105290.0,3.24165809]
[1749873774977,0.00314186,105300.0,105290.0,3.24165803]
[1749873775178,0.0942,105310.0,105300.0,0.1898452]
[1749873775375,0.08888669,105330.0,105300.0,1.02540497]
[1749873775572,0.12058669,105330.0,105320.0,0.29361619]
[1749873775777,0.0317,105330.0,105320.0,0.72260124]
[1749873775975,0.0317,105330.0,105320.0,0.71224653]
[1749873776181,0.0317,105330.0,105320.0,0.72260314]
[1749873776375,0.12058669,105330.0,105320.0,0.72260307]
[1749873776587,0.0317,105330.0,105320.0,0.72260307]
[1749873776772,0.0317,105330.0,105320.0,0.71224646]
[1749873776976,0.0317,105330.0,105320.0,0.72260308]
[1749873777278,0.0317,105330.0,105320.0,0.78371661]
[1749873777578,0.10954856,105330.0,105320.0,0.77336]
[1749873777787,0.0317,105330.0,105320.0,0.78371661]
[1749873778086,0.0317,105330.0,105320.0,0.79855308]
[1749873778386,0.05339534,105330.0,105320.0,0.7402348]